Cogmind - Beta 10.2 @@@ ROGUE MODE // 2021.05.13 @ 04:09:37 Player: thingamajigger Result: Self-destructed Performance ------------- Evolutions (4) 2000 Regions Visited (12) 2400 Robots Destroyed (127) 635 Value Destroyed (5633) 5633 Prototype IDs (31) 620 Alien Tech Used (0) 0 Bonus (2562) 2562 TOTAL SCORE: 13850 Bonus ------- High Alert Combat Kills 1186 Follower Combat Kills 376 Entered Garrisons 200 Used RIF Installer 500 Aligned with FarCom 300 Cogmind --------- Core Integrity 617/850 Matter 140/300 Energy 1630/2100 System Corruption 5% Temperature Cool (0) Movement Core (1200) Ox23 Location -6/Factory Parts ------- > --- POWER (1) -------- (None) > --- PROPULSION (2) --- (None) > --- UTILITY (10) ----- High-capacity Storage Unit High-capacity Storage Unit Superbattery Advanced Targeting Computer Launcher Guidance Computer Advanced ECM Suite Relay Coupler [Grunt] (28) Relay Coupler [Sentry] (19) > --- WEAPON (2) ------- (None) > --- INVENTORY (20) --- Power Amplifier High-capacity Matter Pod (0) Relay Coupler [Sentry] (19) Relay Coupler [Hunter] (16) Relay Coupler [Hunter] (12) Relay Coupler [Behemoth] (9) Relay Coupler [Behemoth] (10) Trap Reconfigurator Drone Bay (1/2) Chronowheel Improved Datajack Great Maul Peak State ------------ > --- POWER ------------ Deuterium Engine > --- PROPULSION ------- Aluminum Leg Titanium Leg > --- UTILITY ---------- High-capacity Storage Unit High-capacity Storage Unit Superbattery Advanced Targeting Computer Launcher Guidance Computer Hardened Medium Armor Plating Reactive Plating Relay Coupler [Grunt] Relay Coupler [Sentry] Drone Bay > --- WEAPON ----------- Guided EMP Blaster > --- INVENTORY -------- High-capacity Matter Pod Relay Coupler [Sentry] Relay Coupler [Hunter] Relay Coupler [Hunter] Relay Coupler [Behemoth] Relay Coupler [Behemoth] Trap Reconfigurator Chronowheel Pulse Rifle Improved Light Cannon Guided EMP Blaster Guided EMP Blaster Improved Datajack Great Maul [Rating: 64] Favorites ----------- Power Improved Ion Engine Engine Improved Ion Engine Power Core Micro Nuclear Core Propulsion Light Treads Treads Light Treads Leg Aluminum Leg Utility High-capacity Storage Unit Device Improved Heat Sink Storage High-capacity Storage Unit Processor Advanced Targeting Computer Hackware Relay Coupler [Grunt] Protection Reactive Plating Weapon Improved Assault Rifle Energy Gun Lightning Gun Ballistic Gun Improved Assault Rifle Ballistic Cannon Bore Cannon Launcher Guided EMP Blaster Impact Weapon Great Maul Slashing Weapon Mining Claw Build | -11 -10 -10 -9 -9 -9 -8 -8 -8 -8 -8 -8 -6 ------- Run | Scr Mat Min Mat Min Exi Min Mat Gar Mat Sto Rec Fac Slots Evolved 8 | . . . 2 . . . 2 . . . . 4 Power . | . . . . . . . . . . . . . Propulsion . | . . . . . . . . . . . . . Utility 8 | . . . 2 . . . 2 . . . . 4 Weapon . | . . . . . . . . . . . . . Parts Attached 105 | 6 7 3 3 11 2 1 16 25 6 12 2 11 Power 8 | 1 1 . . 1 . . 1 1 2 . 1 . Engine 6 | 1 1 . . . . . 1 . 2 . 1 . Core 2 | . . . . 1 . . . 1 . . . . Reactor . | . . . . . . . . . . . . . Propulsion 19 | 2 . 2 . 5 . . . 4 . 3 1 2 Treads 10 | 2 . . . 2 . . . 4 . . . 2 Leg 9 | . . 2 . 3 . . . . . 3 1 . Wheel . | . . . . . . . . . . . . . Hover . | . . . . . . . . . . . . . Flight . | . . . . . . . . . . . . . Utility 33 | 1 3 . 2 2 2 . 5 9 1 3 . 5 Device 5 | . . . 1 . . . 2 . . . . 2 Storage 9 | 1 3 . . 1 2 . . . 1 . . 1 Processor 2 | . . . . . . . 1 1 . . . . Hackware 3 | . . . . . . . 1 . . . . 2 Protection 14 | . . . 1 1 . . 1 8 . 3 . . Artifact . | . . . . . . . . . . . . . Weapon 45 | 2 3 1 1 3 . 1 10 11 3 6 . 4 Energy Gun 11 | 1 . . . 1 . . 5 1 . 2 . 1 Energy Cannon . | . . . . . . . . . . . . . Ballistic Gun 15 | 1 2 . 1 1 . 1 1 6 2 . . . Ballistic Cannon 2 | . . 1 . . . . . . . . . 1 Launcher 9 | . . . . . . . 1 3 . 3 . 2 Special Weapon . | . . . . . . . . . . . . . Impact Weapon 7 | . . . . 1 . . 3 1 1 1 . . Slashing Weapon 1 | . 1 . . . . . . . . . . . Piercing Weapon . | . . . . . . . . . . . . . Special Melee Weapon . | . . . . . . . . . . . . . Unidentified Prototypes 3 | . . . . . . . 1 . 1 1 . . Parts Lost 26 | . . 1 . 2 . . . 6 . 9 . 8 Power 1 | . . . . . . . . . . . . 1 Propulsion 7 | . . 1 . 1 . . . 2 . 2 . 1 Utility 6 | . . . . 1 . . . 1 . 3 . 1 Weapon 12 | . . . . . . . . 3 . 4 . 5 Highest Loss Streak 7 | . . 1 . 1 . . . 2 . 4 . 7 Average Slot Usage (%) 94 | . 99 90 96 98 100 100 95 99 99 83 90 90 Engine 7 | . 14 14 11 4 . . 5 8 8 9 9 5 Core 2 | . . . . 6 11 11 3 . . . . . Treads 12 | . 28 15 . 8 22 22 18 17 18 1 . 8 Leg 5 | . . 3 22 13 . . . . . 4 18 4 Device 4 | . . . 10 11 11 11 11 2 . . . 5 Storage 20 | . 27 28 22 22 22 22 18 18 18 18 18 18 Processor 8 | . . . . . . . 3 15 18 18 18 13 Hackware 1 | . . . . . . . 7 . . . . 10 Protection 12 | . . . 10 9 11 11 9 17 18 17 18 12 Energy Gun 3 | . 4 . . 4 11 11 13 4 . . . 2 Ballistic Gun 9 | . 20 21 9 10 11 11 1 10 14 7 . . Ballistic Cannon 2 | . . 6 11 6 . . . . . . . 2 Launcher 2 | . . . . . . . 2 2 . 7 9 3 Naked Turns . | . . . . . . . . . . . . . Heaviest Build 111 | 11 50 58 63 64 80 80 82 97 98 101 101 111 Greatest Support 42 | 40 40 40 25 40 40 40 40 42 40 40 27 40 Greatest Overweight (x) 32 | . 1 2 2 6 1 1 2 4 2 32 5 32 Average Overweight (x) 2 | . . 1 2 1 1 1 1 1 2 10 3 2 Largest Inventory Capacity 20 | 6 16 16 16 16 20 20 20 20 20 20 20 20 Average Capacity 18 | 5 15 16 16 16 19 20 20 20 20 20 20 20 Most Carried 20 | 3 9 15 15 16 19 19 20 20 20 20 20 20 Average Carried 16 | 1 7 12 13 15 16 18 19 19 19 17 19 17 Final Capacity 20 | 6 16 16 16 16 20 20 20 20 20 20 20 20 Final Carried 20 | 3 9 15 14 16 19 18 20 20 20 18 20 12 Class Distribution -------------------- 47% | Hauler-Mutant 34% | Mutant 10% | Bothacker-Mutant 4% | Scavenger-Mutant 3% | Commander-Mutant Dominant Class ---------------- Mutant | -10/Materials Mutant | -10/Mines Mutant | -9/Materials Mutant | -9/Mines Hauler-Mutant | -9/Exiles Hauler-Mutant | -8/Mines Hauler-Mutant | -8/Materials Hauler-Mutant | -8/Garrison Hauler-Mutant | -8/Materials Hauler-Mutant | -8/Storage Hauler-Mutant | -8/Recycling Bothacker-Mutant | -6/Factory Resources | -11 -10 -10 -9 -9 -9 -8 -8 -8 -8 -8 -8 -6 ----------- Run | Scr Mat Min Mat Min Exi Min Mat Gar Mat Sto Rec Fac Matter Collected 3132 | 213 41 215 90 739 20 . 160 623 259 217 5 550 Remotely . | . . . . . . . . . . . . . Salvage Created 5318 | . 41 169 97 1313 . . 388 1539 381 465 . 925 Parts 307 | . 7 12 11 85 . . 27 84 19 22 . 40 Haulers Intercepted 1 | . . . . . . . 1 . . . . . Recyclers Shooed 2 | . . . . . . . . . . 1 1 . Parts Field Recycled . | . . . . . . . . . . . . . Retrieved Matter . | . . . . . . . . . . . . . Parts Self-Destructed . | . . . . . . . . . . . . . Prevented . | . . . . . . . . . . . . . Kills | -11 -10 -10 -9 -9 -9 -8 -8 -8 -8 -8 -8 -6 ------- Run | Scr Mat Min Mat Min Exi Min Mat Gar Mat Sto Rec Fac Combat Hostiles Destroyed 116 | . 3 7 2 36 . . 5 30 7 9 . 17 Guns 60 | . 3 6 . 18 . . 3 17 7 5 . 1 Cannons 20 | . . 1 2 16 . . . . . . . 1 AOE 30 | . . . . 2 . . 2 12 . 4 . 10 Classes Destroyed 16 | . 1 3 2 4 . . 2 3 . . . 1 Worker 4 | . . . . 2 . . . . . 1 . 1 Builder 2 | . . . 1 . . . . . . 1 . . Tunneler 2 | . . . . 2 . . . . . . . . Hauler 1 | . . . . . . . 1 . . . . . Recycler 1 | . . . . 1 . . . . . . . . Operator 2 | . . . 1 . . . . . 1 . . . Watcher 3 | . . . . . . . 3 . . . . . Swarmer 23 | . 3 3 1 8 . . 2 3 . . . 3 Saboteur 1 | . . . . . . . . . . . . 1 Grunt 68 | . . 2 1 24 . . 2 16 5 9 . 9 Brawler 4 | . . . . 1 . . 1 . . . . 2 Duelist 2 | . . . . . . . . 1 . . . 1 Sentry 10 | . . . . . . . . 7 2 . . 1 Demolisher 1 | . . 1 . . . . . . . . . . Hunter 3 | . . . . . . . . 3 . . . . Assembled 4 | . . 1 . 3 . . . . . . . . Best Kill Streak 11 | . 3 3 2 11 . . 2 5 5 5 . 5 Combat Bots Only 10 | . 3 3 1 10 . . 2 5 5 4 . 5 Max Kills in Single Turn 3 | . 1 2 1 3 . . 2 2 1 2 . 2 Gunslinging 1 | . . 1 . . . . . . . . . . Exploded 2 | . . . . 1 . . 2 2 . 2 . 2 Melee . | . . . . . . . . . . . . . Uniques/NPCs Destroyed . | . . . . . . . . . . . . . Combat | -11 -10 -10 -9 -9 -9 -8 -8 -8 -8 -8 -8 -6 -------- Run | Scr Mat Min Mat Min Exi Min Mat Gar Mat Sto Rec Fac Damage Taken 6147 | . 83 309 108 1121 . . 131 1607 628 937 . 1223 Core 1031 | . 20 38 39 171 . . 29 288 47 166 . 233 Absorbed by Shields . | . . . . . . . . . . . . . Core Remaining (%) 56 | 100 . 76 . . . 47 . . . . 3 . Volleys Fired 341 | . 8 19 6 81 . . 26 100 27 28 2 44 Largest 2 | . 2 2 2 2 . . 2 2 2 2 1 2 Hottest 124 | . 40 77 80 80 . . 110 124 46 46 50 102 Shots Fired 594 | . 16 38 12 162 . . 45 178 50 40 2 51 Gun 446 | . 16 37 6 105 . . 38 157 50 30 . 7 Cannon 71 | . . 1 6 57 . . . . . . . 7 Launcher 77 | . . . . . . . 7 21 . 10 2 37 Special . | . . . . . . . . . . . . . Kinetic 378 | . 16 38 12 138 . . . 87 50 30 . 7 Thermal 18 | . . . . . . . . 11 . . . 7 Explosive 12 | . . . . . . . . 9 . 3 . . Electromagnetic 186 | . . . . 24 . . 45 71 . 7 2 37 Robot Hit Streak 55 | . 4 7 6 15 . . 12 23 22 31 32 55 Robot Miss Streak 6 | . 2 6 1 4 . . 6 1 2 1 . 2 Penetration Max 2 | . . . . 2 . . . . . . . . Secondary Targets 11 | . 2 2 . 1 . . 1 1 2 2 . . Max Gunslinging Chain 1 | . 1 1 . 1 . . 1 1 1 1 . . Shots Hit Robots 388 | . 10 22 7 98 . . 26 120 42 32 1 30 Core Hits 248 | . 3 15 7 50 . . 12 70 18 30 . 43 Critical Hits 28 | . . 1 1 22 . . . 1 1 1 . 1 Critical Kills 15 | . . 1 1 11 . . . . 1 . . 1 Critical Parts Destroyed 12 | . . . . 11 . . . . . 1 . . Melee Attacks 22 | . 4 . . 10 . . 3 1 4 . . . Impact 18 | . . . . 10 . . 3 1 4 . . . Slashing 4 | . 4 . . . . . . . . . . . Piercing . | . . . . . . . . . . . . . Sneak Attacks . | . . . . . . . . . . . . . Combat Hostiles . | . . . . . . . . . . . . . Follow-up Attacks . | . . . . . . . . . . . . . Damage Inflicted 10321 | . 87 256 115 2243 . . 602 2754 639 1163 65 2397 Guns 4935 | . 87 241 71 1273 . . 402 1700 639 439 . 83 Cannons 936 | . . 15 38 783 . . . . . . . 100 Explosions 4434 | . . . . 184 . . 200 1054 . 718 64 2214 Melee . | . . . . . . . . . . . . . Ramming 16 | . . . 6 3 . . . . . 6 1 . Kinetic 4135 | . 87 256 109 1676 . . . 829 639 439 . 100 Thermal 1083 | . . . . 184 . . 99 359 . 220 . 221 Explosive 1231 | . . . . . . . . 518 . 255 . 458 Electromagnetic 3856 | . . . . 380 . . 503 1048 . 243 64 1618 Impact . | . . . . . . . . . . . . . Slashing . | . . . . . . . . . . . . . Piercing . | . . . . . . . . . . . . . Highest Corruption 5 | . . . . . . . . . . . . 5 Average Corruption 3 | . . . . . . . . . . . . 3 Corruption Purged . | . . . . . . . . . . . . . Effects 10 | . . . . . . . . . . . . 10 Message Errors 2 | . . . . . . . . . . . . 2 Matter Fused 2 | . . . . . . . . . . . . 2 Heat Flow Errors 1 | . . . . . . . . . . . . 1 Energy Discharges 3 | . . . . . . . . . . . . 3 Data Loss (minor) 2 | . . . . . . . . . . . . 2 Overload Shots . | . . . . . . . . . . . . . Overflow Damage 100 | . . . . . . . . . . 30 24 46 Projectiles . | . . . . . . . . . . . . . Explosions 100 | . . . . . . . . . . 30 24 46 Melee . | . . . . . . . . . . . . . Knockbacks 14 | . . . 1 12 . . . . . . . 1 Impact . | . . . . . . . . . . . . . Kinetic 12 | . . . 1 10 . . . . . . . 1 Secondary 2 | . . . . 2 . . . . . . . . Self-Inflicted Damage 528 | . . . 3 28 . . 18 173 . 68 . 238 Shots 27 | . . . . 1 . . 2 6 . 4 . 14 Rammed 3 | . . . 1 1 . . . . . 1 . . Targets Rammed 5 | . . . 1 1 . . . . . 2 1 . Kicked 2 | . . . . . . . . . . 1 1 . Crushed . | . . . . . . . . . . . . . Highest Temperature 270 | . 4 34 . 12 . . 9 84 270 169 40 127 Average Temperature 47 | . 1 10 . 4 . . 5 18 130 68 20 41 Received Heat Transfer 2018 | . . 163 9 334 . . 9 504 333 396 . 270 Siege Activations . | . . . . . . . . . . . . . Robots Corrupted 7 | . . . . . . . . 2 . . . 5 Combat Hostiles 6 | . . . . . . . . 1 . . . 5 Parts Fried 17 | . . . . 1 . . 2 7 . . . 7 Impact Corruptions . | . . . . . . . . . . . . . Robots Melted . | . . . . . . . . . . . . . Combat Hostiles . | . . . . . . . . . . . . . Parts Melted 1 | . . . . . . . . . . . . 1 Heat Transferred 1594 | . . . . 250 . . 50 609 . 350 . 335 Parts Sabotaged 2 | . . . . . . . . . . . . 2 Parts Stolen . | . . . . . . . . . . . . . Parts Stripped . | . . . . . . . . . . . . . Power Chain Reactions 18 | . . . . 3 . . 2 4 . 4 . 5 Missiles Intercepted . | . . . . . . . . . . . . . Alert | -11 -10 -10 -9 -9 -9 -8 -8 -8 -8 -8 -8 -6 ------- Run | Scr Mat Min Mat Min Exi Min Mat Gar Mat Sto Rec Fac Peak Influence 1428 | . 155 180 312 593 . . 156 1428 761 351 291 1326 Initial 1021 | . . 60 . 90 . . . 101 696 240 82 1021 Average 435 | . 75 61 147 399 . . 58 856 571 236 172 1183 Maximum Alert Level 4 | . . . 1 2 . . . 4 3 1 1 4 Low Security (%) 41 | 100 100 100 65 8 . 100 100 4 . 48 67 . Level 1 18 | . . . 34 35 . . . 17 . 51 32 . Level 2 16 | . . . . 56 . . . 10 85 . . . Level 3 9 | . . . . . . . . 33 14 . . 22 Level 4 13 | . . . . . . . . 34 . . . 77 Level 5 . | . . . . . . . . . . . . . High Security . | . . . . . . . . . . . . . Max Security . | . . . . . . . . . . . . . Squads Dispatched 13 | . 1 . 1 2 . . . . 1 3 . 5 Investigation 3 | . 1 . . 1 . . . . . 1 . . Extermination . | . . . . . . . . . . . . . Reinforcement 7 | . . . 1 1 . . . . 1 2 . 2 Assault 3 | . . . . . . . . . . . . 3 Garrison . | . . . . . . . . . . . . . Intercept . | . . . . . . . . . . . . . Construction Impeded 2 | . . . . 1 . . . . . . . 1 Haulers Reinforced . | . . . . . . . . . . . . . Stealth | -11 -10 -10 -9 -9 -9 -8 -8 -8 -8 -8 -8 -6 --------- Run | Scr Mat Min Mat Min Exi Min Mat Gar Mat Sto Rec Fac Distress Signals 7 | . 1 . 2 2 . . . . . 2 . . Communications Jammed . | . . . . . . . . . . . . . Distress Signals . | . . . . . . . . . . . . . Times Spotted 197 | . 8 11 19 43 . . 13 33 9 17 16 28 Peak Tracking Total 7 | . 5 3 6 7 . . 3 6 4 4 3 6 Tactical Retreats 23 | . 1 4 . 10 . . . 3 1 1 . 3 Traps | -11 -10 -10 -9 -9 -9 -8 -8 -8 -8 -8 -8 -6 ------- Run | Scr Mat Min Mat Min Exi Min Mat Gar Mat Sto Rec Fac Traps Triggered 9 | . 1 1 . . . . . 6 . 1 . . Indirectly . | . . . . . . . . . . . . . Trap Hack Attempts . | . . . . . . . . . . . . . Triggered . | . . . . . . . . . . . . . Disarmed . | . . . . . . . . . . . . . Reprogrammed . | . . . . . . . . . . . . . Reused . | . . . . . . . . . . . . . Traps Extracted . | . . . . . . . . . . . . . Installed . | . . . . . . . . . . . . . Triggered 2 | . . . . . . . . . . . . 2 Machines | -11 -10 -10 -9 -9 -9 -8 -8 -8 -8 -8 -8 -6 ---------- Run | Scr Mat Min Mat Min Exi Min Mat Gar Mat Sto Rec Fac Machines Disabled 18 | . . . . 1 . . . 9 . 2 2 4 Max in Single Turn 2 | . . . . 1 . . . 2 . 2 . 1 Garrison Access 1 | . . . . . . . . . . . . 1 Garrison Relay 4 | . . . . . . . . 4 . . . . Phase Generator 1 | . . . . . . . . 1 . . . . Machines Sabotaged . | . . . . . . . . . . . . . Garrisons Compromised . | . . . . . . . . . . . . . Overloaded Fab Kills . | . . . . . . . . . . . . . Fab Network Shutdowns . | . . . . . . . . . . . . . Hacking | -11 -10 -10 -9 -9 -9 -8 -8 -8 -8 -8 -8 -6 --------- Run | Scr Mat Min Mat Min Exi Min Mat Gar Mat Sto Rec Fac Machines Accessed 24 | . 3 1 1 1 3 . 4 . 1 3 5 2 Terminals 15 | . 3 . 1 . . . 1 . 1 3 5 1 Fabricators . | . . . . . . . . . . . . . Repair Stations 1 | . . . . . . . 1 . . . . . Recycling Units . | . . . . . . . . . . . . . Scanalyzers 1 | . . . . . . . 1 . . . . . Garrison Access 2 | . . . . . . . 1 . . . . 1 Total Hacks 50 | . 8 1 3 1 3 . 8 . 4 5 12 5 Successful 28 | . 4 1 . 1 3 . 7 . 1 2 4 5 Failed 22 | . 4 . 3 . . . 1 . 3 3 8 . Catastrophic 2 | . . . . . . . . . 1 . 1 . Database Lockouts . | . . . . . . . . . . . . . Manual 26 | . 4 . 3 . 1 . 3 . 4 2 7 2 Terminals 38 | . 8 . 3 . . . 3 . 4 5 12 3 Fabricators . | . . . . . . . . . . . . . Repair Stations 2 | . . . . . . . 2 . . . . . Recycling Units . | . . . . . . . . . . . . . Scanalyzers 2 | . . . . . . . 2 . . . . . Garrison Access 3 | . . . . . . . 1 . . . . 2 Terminal Hacks 15 | . 3 1 . 1 3 . 1 . 1 2 2 1 Record 2 | . . . . . 2 . . . . . . . Robot Analysis 1 | . . . . . . . . . . . 1 . Prototype ID Bank 4 | . 3 . . . . . . . . . 1 . Open Door 4 | . . 1 . 1 . . . . . 2 . . Terminal Index 1 | . . . . . . . 1 . . . . . Unreport Threat 1 | . . . . . . . . . 1 . . . Locate Traps 1 | . . . . . . . . . . . . 1 EX-Prototype ID Bank 1 | . . . . . 1 . . . . . . . Fabricator Hacks . | . . . . . . . . . . . . . Repair Station Hacks 2 | . . . . . . . 2 . . . . . Scan Component 1 | . . . . . . . 1 . . . . . Repair 1 | . . . . . . . 1 . . . . . Recycling Unit Hacks . | . . . . . . . . . . . . . Scanalyzer 2 | . . . . . . . 2 . . . . . Insert Component 1 | . . . . . . . 1 . . . . . Analyze 1 | . . . . . . . 1 . . . . . Garrison Access Hacks 3 | . . . . . . . 1 . . . . 2 Unlock Access 1 | . . . . . . . 1 . . . . . Seal Access 1 | . . . . . . . . . . . . 1 Coupler Status 1 | . . . . . . . . . . . . 1 Unauthorized Hacks 6 | . 1 . . . . . 1 . . . 2 2 Terminals 6 | . 1 . . . . . 1 . . . 2 2 Track 1 | . . . . . . . . . . . . 1 Botnet 2 | . . . . . . . . . . . 2 . Operators 3 | . 1 . . . . . 1 . . . . 1 Fabricators . | . . . . . . . . . . . . . Repair Stations . | . . . . . . . . . . . . . Recycling Units . | . . . . . . . . . . . . . Scanalyzers . | . . . . . . . . . . . . . Garrison Access . | . . . . . . . . . . . . . Data Cores Recovered . | . . . . . . . . . . . . . Used . | . . . . . . . . . . . . . Hacking Detections 17 | . 3 . 1 . . . 3 . 1 2 5 2 Full Trace Events 1 | . . . . . . . . . . 1 . . Feedback Events . | . . . . . . . . . . . . . Feedback Blocked . | . . . . . . . . . . . . . Robot Schematics Acquired . | . . . . . . . . . . . . . Robots Built . | . . . . . . . . . . . . . Matter . | . . . . . . . . . . . . . Time . | . . . . . . . . . . . . . Total Robot Build Rating . | . . . . . . . . . . . . . Part Schematics Acquired 1 | . . . . . . . 1 . . . . . Parts Built . | . . . . . . . . . . . . . Matter . | . . . . . . . . . . . . . Time . | . . . . . . . . . . . . . Total Part Build Rating . | . . . . . . . . . . . . . Parts Repaired 1 | . . . . . . . 1 . . . . . Time 38 | . . . . . . . 38 . . . . . Parts Recycled . | . . . . . . . . . . . . . Recycled Matter . | . . . . . . . . . . . . . Retrieved Matter . | . . . . . . . . . . . . . Retrieved Components . | . . . . . . . . . . . . . Parts Scanalyzed 1 | . . . . . . . 1 . . . . . Part Schematics Acquired 1 | . . . . . . . 1 . . . . . Parts Damaged . | . . . . . . . . . . . . . Bothacking | -11 -10 -10 -9 -9 -9 -8 -8 -8 -8 -8 -8 -6 ------------ Run | Scr Mat Min Mat Min Exi Min Mat Gar Mat Sto Rec Fac Used RIF Installer 1 | . . . . . . . . 1 . . . . Robots Hacked . | . . . . . . . . . . . . . Non-combat . | . . . . . . . . . . . . . Combat . | . . . . . . . . . . . . . Robot Hacks Applied . | . . . . . . . . . . . . . Relay Couplers Released 15 | . . . . . . . . 15 . . . . Machine Destruction 15 | . . . . . . . . 15 . . . . Attached 2 | . . . . . . . . . . . . 2 Robots Rewired 6 | . . . . . . . . . . . 6 . Allies Hacked . | . . . . . . . . . . . . . Hacks Repelled . | . . . . . . . . . . . . . Allies | -11 -10 -10 -9 -9 -9 -8 -8 -8 -8 -8 -8 -6 -------- Run | Scr Mat Min Mat Min Exi Min Mat Gar Mat Sto Rec Fac Total Allies 21 | . . 5 . . . . . . . 10 6 . Largest Group 10 | . . 5 5 . . . . . . 10 8 8 Highest-Rated Group 173 | . . 85 85 . . . . . . 173 138 138 Highest-Rated Ally 31 | . . 31 31 . . . . . . 29 29 29 Total Orders 1 | . . . . . . . . . . . . 1 EXPLORE 1 | . . . . . . . . . . . . 1 Ally Attacks 335 | . . . 42 . . . . . . 28 226 39 Total Damage 3197 | . . . 430 . . . . . . 368 1767 632 Kills 68 | . . . 9 . . . . . . 4 49 6 Allies Corrupted . | . . . . . . . . . . . . . Allies Melted . | . . . . . . . . . . . . . Intel | -11 -10 -10 -9 -9 -9 -8 -8 -8 -8 -8 -8 -6 ------- Run | Scr Mat Min Mat Min Exi Min Mat Gar Mat Sto Rec Fac Robot Analysis Total 1 | . . . . . . . . . . . 1 . Derelict Logs Recovered 4 | . . 2 . 2 . . . . . . . . Drone Launches 1 | . . . . . . . . . . . . 1 Drone Recoveries . | . . . . . . . . . . . . . Exploration | -11 -10 -10 -9 -9 -9 -8 -8 -8 -8 -8 -8 -6 ------------- Run | Scr Mat Min Mat Min Exi Min Mat Gar Mat Sto Rec Fac Turns Passed 10375 | 88 383 1188 232 1531 651 63 776 1796 692 1021 1035 919 Spaces Moved 4079 | 50 169 562 109 640 359 35 293 735 244 160 412 311 Core 42 | 3 . . . . . . . . . 38 . 1 Treads 2894 | 47 169 484 . 310 359 35 293 735 244 29 . 189 Legs 1143 | . . 78 109 330 . . . . . 93 412 121 Wheels . | . . . . . . . . . . . . . Hover . | . . . . . . . . . . . . . Flight . | . . . . . . . . . . . . . Fastest Speed 50 | 50 160 180 180 150 180 180 180 172 200 200 215 200 Average Speed 207 | 153 177 192 180 178 180 180 195 190 200 574 222 215 Slowest Speed 1650 | 160 180 200 180 300 180 180 200 240 200 1650 270 1650 Overloaded Moves . | . . . . . . . . . . . . . Propulsion Burnouts . | . . . . . . . . . . . . . Robots Hopped . | . . . . . . . . . . . . . Cave-ins Triggered . | . . . . . . . . . . . . . Exploration Rate (%) 47 | 3 32 97 21 90 71 20 41 94 20 25 97 11 Regions Visited 12 Branch Regions 6 Pre-discovered Areas 1 | . . . . . 1 . . . . . . . Known Exits Taken 2 | . . 1 . . . . 1 . . . . . Unknown Exits Taken 9 | 1 1 . 1 1 1 1 . . 1 1 1 . Scrap Searched 4 | . . 2 . 2 . . . . . . . . Spaces Dug 19 | . 1 . . . . . 3 6 4 5 . . Terrain Destroyed 294 | . 1 . 3 44 . . 11 167 4 45 . 19 Melee 8 | . 1 . . . . . 3 . 4 . . . Projectile 30 | . . . 3 27 . . . . . . . . AOE 256 | . . . . 17 . . 8 167 . 45 . 19 Terrain Rammed . | . . . . . . . . . . . . . Walls Destroyed . | . . . . . . . . . . . . . Machines Disabled . | . . . . . . . . . . . . . Actions | -11 -10 -10 -9 -9 -9 -8 -8 -8 -8 -8 -8 -6 --------- Run | Scr Mat Min Mat Min Exi Min Mat Gar Mat Sto Rec Fac Total 5345 | 58 227 632 135 844 365 36 443 955 391 221 530 508 Wait 595 | . 31 39 4 85 . . 95 57 106 9 36 133 Move 4066 | 49 168 561 108 639 358 34 292 733 243 159 411 311 Hop . | . . . . . . . . . . . . . Pick Up 69 | 3 6 8 7 8 3 . 5 16 1 5 3 4 Fast Attach 32 | 6 2 1 . 5 . . 4 5 2 4 1 2 Attach 38 | . . 1 3 3 . 1 3 10 1 7 . 9 Detach 6 | . . . . . . . 2 2 . 1 . 1 Swap 35 | . 5 1 . 3 2 . 9 10 3 1 1 . Drop 57 | . 3 2 6 9 2 1 4 15 4 5 2 4 Fire 341 | . 8 19 6 81 . . 26 100 27 28 2 44 Melee 22 | . 4 . . 10 . . 3 1 4 . . . Ram . | . . . . . . . . . . . . . Kick 4 | . . . 1 . . . . . . 2 1 . Crush 1 | . . . . 1 . . . . . . . . Escape Stasis 6 | . . . . . . . . 6 . . . . Rewire 73 | . . . . . . . . . . . 73 . Trap . | . . . . . . . . . . . . . Miscellaneous . | . . . . . . . . . . . . . Route ------- -11/Scrapyard -10/Materials (discovered 2 exits: *Mat / *Min) -10/Mines (discovered 2 exits: *Mat x2) -9/Materials -9/Mines (discovered 2 exits: *Mat / *Exi) -9/Exiles -8/Mines -8/Materials (discovered 3 exits: *Fac x2 / Gar) -8/Garrison (discovered 3 exits: *Mat x3) -8/Materials -8/Storage -8/Recycling -6/Factory (discovered 1 exit: [*Fac]) History --------- Turn | Location | Event 6 | -11/Scrapyard | Discovered new exit (range 15) 89 | -11/Scrapyard | Entered Materials 226 | -10/Materials | Discovered new exit (range 5) 304 | -10/Materials | Build established: Mutant 356 | -10/Materials | Discovered new exit (range 5) 472 | -10/Materials | Entered Mines 570 | -10/Mines | Assembled infested the area 575 | -10/Mines | Assisted by a Guerilla fighting off Assembled 1151 | -10/Mines | Assisted by bots powering up and referring to "LRC-V3" 1276 | -10/Mines | Discovered new exit (range 5) 1334 | -10/Mines | Learned Materials garrison access intel 1484 | -10/Mines | Identified exit to Materials 1505 | -10/Mines | Met a Derelict who couldn't figure out how to use a Trap Extractor 1660 | -10/Mines | Entered Materials 1660 | -9/Materials | Accompanied by 5 allies 1660 | -9/Materials | Evolved 2 slots: Utility x2 1667 | -9/Materials | Led the pair of lost Derelicts to an unsafe place 1864 | -9/Materials | Discovered new exit (range 13) 1892 | -9/Materials | Entered Mines 1927 | -9/Mines | Learned Materials emergency access door positions 2008 | -9/Mines | Excavation squad dispatched 2008 | -9/Mines | A large section of the Mines collapsed 2258 | -9/Mines | Excavation squad dispatched 2289 | -9/Mines | A Derelict revealed a hidden shortcut to a safe place 2492 | -9/Mines | Met a Derelict shopkeep closing up shop 2508 | -9/Mines | Excavation squad dispatched 2629 | -9/Mines | Destroyed 10 combat bots 2758 | -9/Mines | Excavation squad dispatched 2781 | -9/Mines | Core integrity fell below 50% 3008 | -9/Mines | Excavation squad dispatched 3218 | -9/Mines | Discovered new exit (range 8) 3414 | -9/Mines | Deemed a non-threat by the Exiles lab entrance 3416 | -9/Mines | Discovered new exit (range 5) 3423 | -9/Mines | Entered Exiles 3468 | -9/Exiles | Met 8R-AWN 3497 | -9/Exiles | Met EX-HEX 3605 | -9/Exiles | Met EX-DEC 3664 | -9/Exiles | Learned location of Zion (-7) 3803 | -9/Exiles | Met EX-BIN 3839 | -9/Exiles | Aligned with FarCom system 3840 | -9/Exiles | Given EX-Vault access code 3866 | -9/Exiles | Build established: Hauler-Mutant 3882 | -9/Exiles | Opened EX-Vault 3891 | -9/Exiles | Found Chronowheel 3895 | -9/Exiles | Found Superbattery 3904 | -9/Exiles | Found Trap Reconfigurator 3941 | -9/Exiles | Warned to stay clear of 0b10 Research branches 4056 | -9/Exiles | Discovered new exit (range 11) 4074 | -9/Exiles | Stole three prototypes: Superbattery, Trap Reconfigurator, Chronowheel 4074 | -9/Exiles | Entered Mines 4112 | -8/Mines | Discovered new exit (range 13) 4137 | -8/Mines | Entered Materials 4137 | -8/Materials | Evolved 2 slots: Utility x2 4138 | -8/Materials | Identified exit to Factory 4140 | -8/Materials | Loaded intel: 1 garrison access location 4513 | -8/Materials | Repaired Imp. Heat Sink 4668 | -8/Materials | Discovered exit to Factory (range 16) 4911 | -8/Materials | Identified exit to Garrison 4913 | -8/Materials | Entered Garrison 5254 | -8/Garrison | Triggered checkpoint 5306 | -8/Garrison | Garrison Relay disabled 5374 | -8/Garrison | Phase Generator disabled 5453 | -8/Garrison | Triggered checkpoint 5455 | -8/Garrison | Triggered checkpoint 5726 | -8/Garrison | Triggered checkpoint 5810 | -8/Garrison | Discovered new exit (range 8) 5836 | -8/Garrison | Installed Relay Interface Framework 5881 | -8/Garrison | Garrison Relay disabled 6096 | -8/Garrison | Garrison Relay disabled 6138 | -8/Garrison | Discovered new exit (range 8) 6383 | -8/Garrison | Discovered new exit (range 11) 6535 | -8/Garrison | Core integrity fell below 50% 6550 | -8/Garrison | Triggered checkpoint 6583 | -8/Garrison | Garrison Relay disabled 6709 | -8/Garrison | Entered Materials 6898 | -8/Materials | Discovered new exit (range 4) 7401 | -8/Materials | Entered Storage 7529 | -8/Storage | Lost 4 parts (2n1u1w) 8101 | -8/Storage | Core integrity fell below 20% 8200 | -8/Storage | Lost 4 parts (2u2w) 8203 | -8/Storage | Assisted by bots powering up and referring to "LRC-V3" 8408 | -8/Storage | Used back door to open Recycling access 8408 | -8/Storage | Discovered new exit (range 4) 8422 | -8/Storage | Entered Recycling 8422 | -8/Recycling | Accompanied by 6 allies 8468 | -8/Recycling | Spotter reported a threat 8476 | -8/Recycling | Build established: Commander-Mutant 8506 | -8/Recycling | Spotter reported a threat 8523 | -8/Recycling | Spotter reported a threat 8532 | -8/Recycling | Spotter reported a threat 8539 | -8/Recycling | Spotter reported a threat 8576 | -8/Recycling | Spotter reported a threat 8576 | -8/Recycling | Spotter reported a threat 8595 | -8/Recycling | Spotter reported a threat 8609 | -8/Recycling | Spotter reported a threat 8716 | -8/Recycling | Spotter reported a threat 8808 | -8/Recycling | Spotter reported a threat 8818 | -8/Recycling | Spotter reported a threat 8830 | -8/Recycling | Spotter reported a threat 8836 | -8/Recycling | Build established: Hauler-Mutant 8836 | -8/Recycling | Spotter reported a threat 8859 | -8/Recycling | Spotter reported a threat 8859 | -8/Recycling | Spotter reported a threat 8906 | -8/Recycling | Spotter reported a threat 8906 | -8/Recycling | Spotter reported a threat 8916 | -8/Recycling | Spotter reported a threat 8948 | -8/Recycling | Spotter reported a threat 8953 | -8/Recycling | Spotter reported a threat 8953 | -8/Recycling | Spotter reported a threat 8994 | -8/Recycling | Spotter reported a threat 8994 | -8/Recycling | Spotter reported a threat 8994 | -8/Recycling | Spotter reported a threat 9045 | -8/Recycling | Spotter reported a threat 9045 | -8/Recycling | Spotter reported a threat 9047 | -8/Recycling | Spotter reported a threat 9096 | -8/Recycling | Spotter reported a threat 9097 | -8/Recycling | Spotter reported a threat 9098 | -8/Recycling | Spotter reported a threat 9147 | -8/Recycling | Spotter reported a threat 9172 | -8/Recycling | Spotter reported a threat 9174 | -8/Recycling | Spotter reported a threat 9184 | -8/Recycling | Spotter reported a threat 9207 | -8/Recycling | Discovered new exit (range 16) 9242 | -8/Recycling | Spotter reported a threat 9248 | -8/Recycling | Spotter reported a threat 9248 | -8/Recycling | Spotter reported a threat 9301 | -8/Recycling | Spotter reported a threat 9310 | -8/Recycling | Spotter reported a threat 9334 | -8/Recycling | Spotter reported a threat 9334 | -8/Recycling | Spotter reported a threat 9334 | -8/Recycling | Spotter reported a threat 9387 | -8/Recycling | Spotter reported a threat 9388 | -8/Recycling | Spotter reported a threat 9388 | -8/Recycling | Spotter reported a threat 9436 | -8/Recycling | Spotter reported a threat 9457 | -8/Recycling | Entered Factory 9457 | -6/Factory | Accompanied by 8 allies 9457 | -6/Factory | Evolved 4 slots: Utility x4 9459 | -6/Factory | FarCom data flow suspended 9594 | -6/Factory | Build established: Bothacker-Mutant 9807 | -6/Factory | First assault squad dispatched 10011 | -6/Factory | Discovered new exit (range 6) 10376 | -6/Factory | Self-destructed Last Messages --------------- 10325_ Lgt. Treads blown off. 10325_ Hrd. Medium Armor Plating blown off. 10325_ E-15 Imp destroyed. 10330_ Dropped Hcp. Matter Pod. 10334_ Extracted 200 matter. 10336_ Acquired Hcp. Matter Pod. 10340_ Lgt. Treads destroyed. 10346_ Flexi-carbon Leg melted. 10346_ G-67 Veteran destroyed. 10359_ Pulse Rifle destroyed. 10360_ Imp. Light Cannon destroyed. 10361_ Reactive Plating destroyed. 10363_ Deuterium Engine destroyed. 10367_ CHJSSWEU|EGA 8|LQAM>SIW#LZ 5XU5L5NIWYG7 10368_ R-10 Processor collects Adv. Heat Sink. 10369_ Gui. EMP Blaster destroyed. 10369_ Destroyed Gui. EMP Blaster. 10371_ R-10 Processor collects Adv. Heat Sink. 10374_ Gui. EMP Blaster destroyed. 10374_ Destroyed Gui. EMP Blaster. Map ----- +----------------------------------------------------+ | ????????????????????????????????????????? | | ????????????????????????????????????????? | | ????????????????????????????????????????? | | ????????????????????????????????????????? | | ????????????????????????????????????????? | | ????????????????????????????????????????? | | ????????????????????????????????????????? | | ????????????????????????????????????????? | | ????????????????????????????????????????? | | ????????????????????????????????????????? | | ????????????????????????????????????????? | | ????????????????????????????????????????? | | ????????????????????????????????????????? | | ????????????????????????????????????????? | | ????????????????????????????????????????? | | ????????????????????????????????????????? | | ###########?????????????????????????????? | | # ""G"" #?????????????????????????????? | | # "" "" #?????????????????????????????? | | # #?????????????????????????????? | | # ] ] #?????????????????????????????? | | #####+#####?????????????????????????????? | | ????# #???#######???????????????????????? | | ????# #???# #?????????? #?????????? | | ????# ##### ##### % #?????????? | | ????# @=%=R #?????????? | | ????####### gl###### #?????????? | | ??????????# #???????????????????????? | | ??????????### ###???????????????????????? | | ????????????# #?????????????????????????? | | ????????????# #?????????????????????????? | | ????????????# #?????????????????????????? | | ?????########+#####?????????????????????? | | ?????# #?????????????????????? | | ?????# #?????????????????????? | | ?????# #?????????????????????? | | ?????# """" "" #?????????????????????? | | ?????# """" "" #????? ????????????? | | ?????# """" """ +???? ???????????? | | ?????# """" """ #??? ???????????? | | ?????# """" """ #??? o???????????? | | ?????# """" #?? #????????????? | | ?????# #? #????????????? | | ?????# #? #????????????? | | ?????# # #????????????? | | ?????###########+## #????????????? | | ???????????????# #????????????? | | ???????????????# ##???????????? | | ???????????????# +???????????? | | ????????######## #???????????? | +----------------------------------------------------+ Best States ------------- Heat Dissipation 45 Energy Generation 15 Energy Capacity 2275 Matter Stores 300 Matter Capacity 300 Sight Range 16 Terrain Scan Density 10 ECM Strength 3 Jamming Range 8 Armor Coverage 375 Resistance: KI 20 Power Shielding 66 Utility Shielding 66 Weapon Shielding 33 Evasion (%) 40 Targeting Accuracy 8 Launcher Accuracy 20 Recoil Reduction 2 Offensive Hacking 10 Relay Coupler Types 47 Relay Coupler Value 2 Item Schematics ----------------- EMP Blaster | -8/Materials | Scanalyzed Robot Schematics ------------------ None Fabricated ------------ Nothing Alien Tech Used ----------------- None Achievements -------------- None Challenges ------------ None Game ------ Seed RelaySniperSheargun Manual? 0 Play Time 00:57:13 Cumulative 67.1 hours Start 2021.05.13 @ 03:13:48 End 2021.05.13 @ 04:09:37 Sessions 1 Manual Loads 0 Difficulty Rogue Special Mode None Game No. 126 Rogue 114 Adventurer 4 Explorer 8 Win Type - Total 5 Types 4/0/0/1/0/0/0/0/0 Lore% 54 Gallery% 71 Achievement% 50 Wizard Run 0 Options --------- ASCII 0 Keyboard 1 Movement Numpad Keybinds 0 Fullscreen 1 Font 16/Terminus Map View 76x50 Tactical HUD 1 Map Filters NONE Filters NONE Steam 1 RUN: de69b461-8b49-4a10-8802-78c4a0bf4d2d